{"text_format":"3","workbook":"xlsx","n_sheets":2,"sheets":["Formular ofertă","Costuri"],"not_rendered":{"charts":1,"images":2,"defined_names":4},"read":"whole","date_system":"1900"}

{"sheet":"Formular ofertă","index":0,"n_rows":48,"n_cols":7,"rows_kept":48,"merged":[[15,1,25,5],[29,1,31,5],[35,1,37,5],[43,1,45,5]]}
[]
[null,"FORMULAR DE CONSTRUCȚIE A OFERTELOR",{"$nulls":4}," "]
[]
[]
[null,"INFORMAȚII PROPRIETAR",null,null,"INFORMAȚII CONTRACTOR"]
[null,"Nume","Cornel Lupu",null,"Firmă","Fabrikam, Inc."]
[null,"Adresă","Str. Principală 123",null,"Nume","Daniel Roman"]
[null,"Localitate, cod poștal","Galați, GL 12345",null,"Adresă","Str. Soarelui 321"]
[null,"Telefon",8885550111,null,"Localitate, cod poștal","Galați, GL 12345"]
[null,"E-mail","cornel@proseware.com",null,"Telefon",8885550123]
[{"$nulls":4},"E-mail","daniel@fabrikam.com"]
[null,"Numele proiectului","Trepte către succesul în afaceri",null,"Data terminării","2013-07-14"]
[]
[null,"DOMENIU DE ACTIVITATE"]
[]
[null,"Aici intră domeniul proiectului. Tastați toate specificațiile pe care le doriți. Acesta va fi un proiect al unui set de scări mare de construit, dat ca exemplu. Vom folosi doar cherestea 2x4 și 2x8, precum și grinzi transversale de colțar, pentru a construi cadrul. Scările vor fi decupate din material 2x4. Se vor utiliza nu mai puțin de 2\" de șuruburi. Orice cui folosit nu va depăși prețul de 10 bani. Ponderea proiectării va avea un minimum de 500 de kg per etaj. Etajele vor fi la nivelul casei. Se va asambla o treaptă către casă. Contractorul se va ocupa de curățare."]
{"$rows_empty":11}
[null,"NEINCLUS"]
[]
[null,"Nu se vor instala șine. Terenul va fi pregătit de proprietar. Scările vor fi pictate de proprietar."]
[]
[]
[]
[null,"PROPUNERE FIRMĂ"]
[]
[null,"Noi, Fabrikam, Inc., propunem domeniul de lucru de mai sus, care să fie terminat până la 14.07.2011, pentru suma de 476,43 RON."]
[]
[]
[]
[null,"Remis de (Reprezentant firmă)",{"$nulls":3},"Data"]
[]
[null,"ACCEPTARE PROPRIETAR"]
[]
[null,"Eu, Cornel Lupu, accept domeniul de lucru de mai sus, propus să fie terminat până la 14.07.2011, pentru suma de 476,43 RON."]
[]
[]
[]
[null,"Remis de (deținător casă sau reprezentant autorizat)",{"$nulls":3},"Data"]

{"sheet":"Costuri","index":1,"n_rows":47,"n_cols":6,"rows_kept":47,"merged":[[42,3,42,4],[43,3,43,4],[44,3,44,4],[45,3,45,4],[46,3,46,4],[47,3,47,4],[48,3,48,4],[49,3,49,4]]}
[]
[null,"REZUMATUL COSTURILOR OFERTEI",{"$nulls":3}," "]
[]
[]
[null,"LISTA MATERIALELOR ȘI A COSTURILOR"]
[]
[null,"Cantitate","Descriere","Cost","Total"," "]
[null,5,"2x8x10 cherestea",{"v":6.75,"d":"6.75 lei"},{"$f":"ArticoleOfertă[Cost]*ArticoleOfertă[Cantitate]","v":{"v":33.75,"d":"33.75 lei"}},{"$f":"_xlfn.RANK.EQ(ArticoleOfertă[[#This Row],[Total]],ArticoleOfertă[Total])","v":4}]
[null,20,"2x4x10 cherestea",{"v":4.97,"d":"4.97 lei"},{"$f":"ArticoleOfertă[Cost]*ArticoleOfertă[Cantitate]","v":{"v":99.39999999999999,"d":"99.40 lei"}},{"$f":"_xlfn.RANK.EQ(ArticoleOfertă[[#This Row],[Total]],ArticoleOfertă[Total])","v":2}]
[null,30,"Grinzi transversale colțar",{"v":2.49,"d":"2.49 lei"},{"$f":"ArticoleOfertă[Cost]*ArticoleOfertă[Cantitate]","v":{"v":74.7,"d":"74.70 lei"}},{"$f":"_xlfn.RANK.EQ(ArticoleOfertă[[#This Row],[Total]],ArticoleOfertă[Total])","v":3}]
[null,2,"Cutie de șuruburi, 2 in",{"v":6.67,"d":"6.67 lei"},{"$f":"ArticoleOfertă[Cost]*ArticoleOfertă[Cantitate]","v":{"v":13.34,"d":"13.34 lei"}},{"$f":"_xlfn.RANK.EQ(ArticoleOfertă[[#This Row],[Total]],ArticoleOfertă[Total])","v":6}]
[null,2,"Cutie de cuie, 10 bani",{"v":3.25,"d":"3.25 lei"},{"$f":"ArticoleOfertă[Cost]*ArticoleOfertă[Cantitate]","v":{"v":6.5,"d":"6.50 lei"}},{"$f":"_xlfn.RANK.EQ(ArticoleOfertă[[#This Row],[Total]],ArticoleOfertă[Total])","v":7}]
[null,2,"Pereche de mănuși, piele",{"v":7.75,"d":"7.75 lei"},{"$f":"ArticoleOfertă[Cost]*ArticoleOfertă[Cantitate]","v":{"v":15.5,"d":"15.50 lei"}},{"$f":"_xlfn.RANK.EQ(ArticoleOfertă[[#This Row],[Total]],ArticoleOfertă[Total])","v":5}]
[null,2,"Tarife muncitor",{"v":100,"d":"100.00 lei"},{"$f":"ArticoleOfertă[Cost]*ArticoleOfertă[Cantitate]","v":{"v":200,"d":"200.00 lei"}},{"$f":"_xlfn.RANK.EQ(ArticoleOfertă[[#This Row],[Total]],ArticoleOfertă[Total])","v":1}]
[{"$nulls":4},{"$f":"ArticoleOfertă[Cost]*ArticoleOfertă[Cantitate]","v":0},{"$f":"_xlfn.RANK.EQ(ArticoleOfertă[[#This Row],[Total]],ArticoleOfertă[Total])","v":8}]
[{"$nulls":4},{"$f":"ArticoleOfertă[Cost]*ArticoleOfertă[Cantitate]","v":0},{"$f":"_xlfn.RANK.EQ(ArticoleOfertă[[#This Row],[Total]],ArticoleOfertă[Total])","v":8}]
[{"$nulls":4},{"$f":"ArticoleOfertă[Cost]*ArticoleOfertă[Cantitate]","v":0},{"$f":"_xlfn.RANK.EQ(ArticoleOfertă[[#This Row],[Total]],ArticoleOfertă[Total])","v":8}]
[{"$nulls":4},{"$f":"ArticoleOfertă[Cost]*ArticoleOfertă[Cantitate]","v":0},{"$f":"_xlfn.RANK.EQ(ArticoleOfertă[[#This Row],[Total]],ArticoleOfertă[Total])","v":8}]
[{"$nulls":4},{"$f":"ArticoleOfertă[Cost]*ArticoleOfertă[Cantitate]","v":0},{"$f":"_xlfn.RANK.EQ(ArticoleOfertă[[#This Row],[Total]],ArticoleOfertă[Total])","v":8}]
[{"$nulls":4},{"$f":"ArticoleOfertă[Cost]*ArticoleOfertă[Cantitate]","v":0},{"$f":"_xlfn.RANK.EQ(ArticoleOfertă[[#This Row],[Total]],ArticoleOfertă[Total])","v":8}]
[{"$nulls":4},{"$f":"ArticoleOfertă[Cost]*ArticoleOfertă[Cantitate]","v":0},{"$f":"_xlfn.RANK.EQ(ArticoleOfertă[[#This Row],[Total]],ArticoleOfertă[Total])","v":8}]
[{"$nulls":4},{"$f":"ArticoleOfertă[Cost]*ArticoleOfertă[Cantitate]","v":0},{"$f":"_xlfn.RANK.EQ(ArticoleOfertă[[#This Row],[Total]],ArticoleOfertă[Total])","v":8}]
[{"$nulls":4},{"$f":"ArticoleOfertă[Cost]*ArticoleOfertă[Cantitate]","v":0},{"$f":"_xlfn.RANK.EQ(ArticoleOfertă[[#This Row],[Total]],ArticoleOfertă[Total])","v":8}]
[{"$nulls":4},{"$f":"ArticoleOfertă[Cost]*ArticoleOfertă[Cantitate]","v":0},{"$f":"_xlfn.RANK.EQ(ArticoleOfertă[[#This Row],[Total]],ArticoleOfertă[Total])","v":8}]
[{"$nulls":4},{"$f":"ArticoleOfertă[Cost]*ArticoleOfertă[Cantitate]","v":0},{"$f":"_xlfn.RANK.EQ(ArticoleOfertă[[#This Row],[Total]],ArticoleOfertă[Total])","v":8}]
[{"$nulls":4},{"$f":"ArticoleOfertă[Cost]*ArticoleOfertă[Cantitate]","v":0},{"$f":"_xlfn.RANK.EQ(ArticoleOfertă[[#This Row],[Total]],ArticoleOfertă[Total])","v":8}]
[{"$nulls":4},{"$f":"ArticoleOfertă[Cost]*ArticoleOfertă[Cantitate]","v":0},{"$f":"_xlfn.RANK.EQ(ArticoleOfertă[[#This Row],[Total]],ArticoleOfertă[Total])","v":8}]
[{"$nulls":4},{"$f":"ArticoleOfertă[Cost]*ArticoleOfertă[Cantitate]","v":0},{"$f":"_xlfn.RANK.EQ(ArticoleOfertă[[#This Row],[Total]],ArticoleOfertă[Total])","v":8}]
[{"$nulls":4},{"$f":"ArticoleOfertă[Cost]*ArticoleOfertă[Cantitate]","v":0},{"$f":"_xlfn.RANK.EQ(ArticoleOfertă[[#This Row],[Total]],ArticoleOfertă[Total])","v":8}]
[{"$nulls":4},{"$f":"ArticoleOfertă[Cost]*ArticoleOfertă[Cantitate]","v":0},{"$f":"_xlfn.RANK.EQ(ArticoleOfertă[[#This Row],[Total]],ArticoleOfertă[Total])","v":8}]
[1,{"$nulls":3},{"$f":"ArticoleOfertă[Cost]*ArticoleOfertă[Cantitate]","v":0},{"$f":"_xlfn.RANK.EQ(ArticoleOfertă[[#This Row],[Total]],ArticoleOfertă[Total])","v":8}]
[2,null,null,"Subtotal",{"$f":"SUBTOTAL(109,ArticoleOfertă[Total])","v":{"v":443.18999999999994,"d":"443.19 lei"}}]
[3,null,null,"Rată impozit",{"v":0.075,"d":"7.50%"}]
[4,null,null,"Impozit",{"$f":"RatăImpozit*ArticoleOfertă[[#Totals],[Total]]","v":{"v":33.23924999999999,"d":"33.24 lei"}}]
[5,null,null,"Total general",{"$f":"Impozit+ArticoleOfertă[[#Totals],[Total]]","v":{"v":476.4292499999999,"d":"476.43 lei"}}]
[]
[]
[]
[null,"EVALUAREA MATERIALELOR ȘI A COSTURILOR"]
[]
[]
[null,null,"TOTAL","NOTE"]
[null,{"$f":"INDEX(ArticoleOfertă[],MATCH(A31,ArticoleOfertă[[ ]],0),2)","v":"Tarife muncitor"},{"$f":"INDEX(ArticoleOfertă[],MATCH(A31,ArticoleOfertă[[ ]],0),4)","v":{"v":200,"d":"$200.00"}}]
[null,{"$f":"INDEX(ArticoleOfertă[],MATCH(A32,ArticoleOfertă[[ ]],0),2)","v":"2x4x10 cherestea"},{"$f":"INDEX(ArticoleOfertă[],MATCH(A32,ArticoleOfertă[[ ]],0),4)","v":{"v":99.39999999999999,"d":"$99.40"}}]
[null,{"$f":"INDEX(ArticoleOfertă[],MATCH(A33,ArticoleOfertă[[ ]],0),2)","v":"Grinzi transversale colțar"},{"$f":"INDEX(ArticoleOfertă[],MATCH(A33,ArticoleOfertă[[ ]],0),4)","v":{"v":74.7,"d":"$74.70"}}]
[null,{"$f":"INDEX(ArticoleOfertă[],MATCH(A34,ArticoleOfertă[[ ]],0),2)","v":"2x8x10 cherestea"},{"$f":"INDEX(ArticoleOfertă[],MATCH(A34,ArticoleOfertă[[ ]],0),4)","v":{"v":33.75,"d":"$33.75"}}]
[null,{"$f":"INDEX(ArticoleOfertă[],MATCH(A35,ArticoleOfertă[[ ]],0),2)","v":"Pereche de mănuși, piele"},{"$f":"INDEX(ArticoleOfertă[],MATCH(A35,ArticoleOfertă[[ ]],0),4)","v":{"v":15.5,"d":"$15.50"}}]